Workbook

Sheet Cover
C2: =F26 -> 2
C3: 1 | D3: =Language!E2 -> Deutsch | H3: =Input!A1 -> Version 1.7 : JT 131118 Gen2
C4: 2 | D4: =Language!F2 -> English
C5: 3 | D5: =Language!G2 -> Français
C6: 4 | D6: =Language!H2 -> Italiano
C7: 5 | D7: =Language!I2 -> Español
C8: 6 | D8: =Language!J2 -> Polish
C9: 7 | D9: =Language!K2 -> …
C10: 8 | D10: =Language!L2 -> …
C11: 9 | D11: =Language!M2 -> …
F25: =Language!D12 -> Language choice
D26: = 1 | F26: 2
D28: = 2
D30: = 3
D32: = 4
D34: = 5
D36: = 6

Sheet Input
A1: Version 1.7 : JT 131118 Gen2
C4: =Language!D13 -> Please enter only one pressure value!
C5: =Language!D6 -> Compressor discharge pressure | F5: =Language!D7 -> Minimum inlet pressure
C6: 7.5 | F6: =IF('Be-Um-rechnung'!A20=1,C6-0.5,C6-7) -> 7
C7: =IF('Be-Um-rechnung'!$A$20=1,IF('Be-Um-rechnung'!$A$20=2,Language!$D$31,IF(Input!C6<5.5,Language!$D$31,IF(Input!C6>15.5,Language!$D$31," "))),IF(Input!C6<80,Language!$D$31,IF(Input!C6>225,Language!$D$31," "))) ->  | F7: =IF('Be-Um-rechnung'!$A$20=1,IF('Be-Um-rechnung'!$A$20=2,Language!$D$33,IF(Input!F6<5,Language!$D$33,IF(Input!F6>15,Language!$D$33," "))),IF(Input!F6<73,Language!$D$33,IF(Input!F6>217,Language!$D$33," "))) -> 
A15: =Language!D5 -> Compressed air flow rate at 20°C and 1 bar a
A16: 8
A17: =IF('Be-Um-rechnung'!C9>Stoffdaten!M33,Language!D11," ") -> 
B25: =Language!D4 -> Ambient temperature | F25: =Language!D8 -> Maximum inlet temperature | I25: =Language!D9 -> Outlet pressure dewpoint
B26: 25 | F26: 35 | I26: -70°C
B27: =IF('Be-Um-rechnung'!$A$14=1,IF('Be-Um-rechnung'!$A$14=2,Language!$D$32,IF(Input!B26<1.5,Language!$D$32,IF(Input!B26>50,Language!$D$32," "))),IF(Input!B26<35,Language!$D$32,IF(Input!B26>122,Language!$D$32," "))) ->  | F27: =IF('Be-Um-rechnung'!$A$14=1,IF('Be-Um-rechnung'!$A$14=2,Language!$D$10,IF(Input!F26<25,Language!$D$10,IF(Input!F26>50,Language!$D$10," "))),IF(Input!F26<77,Language!$D$10,IF(Input!F26>122,Language!$D$10," "))) ->  | I27: =IF('Be-Um-rechnung'!J7=0,Language!D36," ") -> 
H28: ='Be-Um-rechnung'!J10 -> 12 | I28: ='Be-Um-rechnung'!J10 -> 12 | J28: ='Be-Um-rechnung'!J10 -> 12
D29: =Language!D34 -> Out of standard range! Check the inputs! | H29: ='Be-Um-rechnung'!J10 -> 12 | I29: ='Be-Um-rechnung'!J10 -> 12 | J29: ='Be-Um-rechnung'!J10 -> 12
D30: =Language!D11 -> Dryer must be sized by Parker! | H30: ='Be-Um-rechnung'!J10 -> 12 | I30: ='Be-Um-rechnung'!J10 -> 12 | J30: ='Be-Um-rechnung'!J10 -> 12
D31: =Language!D35 -> Inputs are OK! GO!

Sheet Output
A1: =Language!D14 -> Dryer in accordance with standard specification
A2: =Input!A1 -> Version 1.7 : JT 131118 Gen2
A3: K-MT | B3: =IF(C5=ArtikelNr.!B3,Stoffdaten!N2,"#NV") -> 1 | C3: =Language!D17 -> Without dew-point dependant-switching (fixed cycle) | D3: =Language!D18 -> With dew-point dependant-switching (variable cycle)
A5: =Language!D20 -> Order Number/Catalogue Number | C5: =IF('Be-Um-rechnung'!C4<=Stoffdaten!W2,ArtikelNr.!B3, Language!D11) -> K1/16D2-G230M | D5: =IF('Be-Um-rechnung'!C4<=Stoffdaten!W2,ArtikelNr.!C3,Language!D11) -> K1/16D2-G230MT
A7: =Language!D5 -> Compressed air flow rate at 20°C and 1 bar a | C7: ='Be-Um-rechnung'!B29 -> 8 | D7: ='Be-Um-rechnung'!B29 -> 8 | E7: ='Be-Um-rechnung'!C29 -> m³/h
A8: =Input!F5 -> Minimum inlet pressure | C8: ='Be-Um-rechnung'!B20 -> 7 | D8: ='Be-Um-rechnung'!B20 -> 7 | E8: ='Be-Um-rechnung'!C20 -> bar g
A9: =Input!F25 -> Maximum inlet temperature | C9: ='Be-Um-rechnung'!B14 -> 35 | D9: ='Be-Um-rechnung'!B14 -> 35 | E9: ='Be-Um-rechnung'!C14 -> °C
A10: =Input!I25 -> Outlet pressure dewpoint | C10: ='Be-Um-rechnung'!B39 -> -40 | D10: ='Be-Um-rechnung'!B39 -> -40 | E10: ='Be-Um-rechnung'!D39 -> °C
A11: =Language!D19 -> Average purge-air consumption | C11: =IF('Be-Um-rechnung'!C4<=Stoffdaten!W2,ROUND(Stoffdaten!AC2,1), "#NV") -> 1.2 | D11: =IF('Be-Um-rechnung'!C4<=Stoffdaten!W2,ROUND(Stoffdaten!AJ2,1), "#NV") -> 1.1 | E11: ='Be-Um-rechnung'!C29 -> m³/h
A12: =Language!D21 -> Average outlet flow rate | C12: =IF('Be-Um-rechnung'!C4<=Stoffdaten!W2,ROUND((C7-C11),1), "#NV") -> 6.8 | D12: =IF('Be-Um-rechnung'!C4<=Stoffdaten!W2,ROUND((D7-D11),1), "#NV") -> 6.9 | E12: ='Be-Um-rechnung'!C29 -> m³/h
A14: =Language!D39 -> cycle - total | C14: =C15*2 -> 10 | D14: =D15*2 -> 10.18567504 | E14: min
A15: =Language!D40 -> adsorption | C15: =Stoffdaten!AO34 -> 5 | D15: =Stoffdaten!AF33 -> 5.092837518 | E15: min
A16: =Language!D41 -> regeneration | C16: =Stoffdaten!AS36 -> 4 | D16: =C16 -> 4 | E16: min
A17: =Language!D42 -> pressurization | C17: 1 | D17: =C17 -> 1 | E17: min
A18: =Language!D43 -> Standby | C18: =C14-C15-C16-C17 -> 0 | D18: =D14-D15-D16-D17 -> 0.09283751843 | E18: min
A20: =IF(AND('Düsen Blendenkit'!B3=1,'Düsen Blendenkit'!B5<=95),IF(Stoffdaten!O2='Düsen Blendenkit'!H27," ",Language!D22)," ") ->  | C20: =IF(AND('Düsen Blendenkit'!B3=1,'Düsen Blendenkit'!B5<=95),IF(Stoffdaten!O2='Düsen Blendenkit'!H27," ",'Düsen Blendenkit'!H27)," ") ->  | D20: =IF(AND('Düsen Blendenkit'!B3=1,'Düsen Blendenkit'!B5<=95),IF(Stoffdaten!P2='Düsen Blendenkit'!H44," ",'Düsen Blendenkit'!H44)," ") ->  | E20: =IF(AND('Düsen Blendenkit'!B3=1,'Düsen Blendenkit'!B5<=95),IF(Stoffdaten!O2='Düsen Blendenkit'!H27," ","mm")," ") -> 
A21: =IF(AND('Düsen Blendenkit'!B3=1,'Düsen Blendenkit'!B5<=95),IF(Stoffdaten!O2='Düsen Blendenkit'!H27," ",Language!D23)," ") ->  | C21: =IF(AND('Düsen Blendenkit'!B3=1,'Düsen Blendenkit'!B5<=95),IF(Stoffdaten!O2='Düsen Blendenkit'!H27," ",ArtikelNr.!D3)," ") -> 
A23: =Language!D26 -> Dimensions (AxBxC) (Width) x (Height) x (Depth) | C23: =IF('Be-Um-rechnung'!C4<=Stoffdaten!W2,Stoffdaten!T2, "#NV") -> 326 x 400 x 216 | E23: mm
A24: =Language!D25 -> Weight | C24: =IF('Be-Um-rechnung'!C4<=Stoffdaten!W2,Stoffdaten!U2, "#NV") -> 11.5 | E24: kg
A25: =Language!D24 -> Standard connections (DIN ISO 228 or DIN 2633) | C25: =IF('Be-Um-rechnung'!C4<=Stoffdaten!W2,Stoffdaten!V2, "#NV") -> 1/4 " | E25: =Language!D29 & " (1*) " -> Alternatives possible (1*)
A27: =Language!D27 -> Standard Voltage | C27: 230 VAC, 50-60 Hz | E27: =Language!D29 & " (2*) " -> Alternatives possible (2*)
A28: =Language!D28 -> IP - Protection classification | C28: IP 65
B34: (1*) | C34: =Language!D37 &" "& Language!D30 -> Alternatively ANSI B 1.20.1 (NPT-F). Please consult Parker!
B35: (2*) | C35: =Language!D38&" "& Language!D30 -> Alternatively 115V and 24 VDC. Please consult Parker!

Sheet Stoffdaten (hidden)
C1: W-Verweis | E1: S-Verweis | G1: Korrekturfaktor | M1: V in m³/h | N1: TYP K-MT | O1: Düse ohne ZHM | P1: Düse mit ZHM | Z1: mittlerer Luftbedarf Starrrer Zyklus Taupunktabhängig | AF1: mittlerer Luftbedarf variabler Zyklus
C2: =HLOOKUP('Be-Um-rechnung'!C5,C13:H14,2) -> 3 | E2: =VLOOKUP('Be-Um-rechnung'!C4,Stoffdaten!B15:H25,C2+1) -> 1 | G2: =IF('Be-Um-rechnung'!C6<-41,Stoffdaten!E3*Stoffdaten!A27,Stoffdaten!E3) -> 1 | M2: =VLOOKUP(N2,$L$10:N33,2) -> 8.0000001 | N2: =VLOOKUP('Be-Um-rechnung'!C9,Stoffdaten!$M$9:N33,2) -> 1 | O2: =VLOOKUP(N2,Stoffdaten!L9:O33,4) -> 0.7 | P2: =VLOOKUP(N2,Stoffdaten!L9:P33,5) -> 0.7 | Q2: =VLOOKUP(N2,Stoffdaten!L9:Q33,6) -> 0.001 | R2: =VLOOKUP(N2,Stoffdaten!L9:R33,7) -> 0.8 | S2: =VLOOKUP(N2,Stoffdaten!L9:S33,8) -> 1.17 | T2: =VLOOKUP(N2,Stoffdaten!L9:T33,9) -> 326 x 400 x 216 | U2: =VLOOKUP(N2,Stoffdaten!L9:U33,10) -> 11.5 | V2: =VLOOKUP(N2,Stoffdaten!L9:V33,11) -> 1/4 " | W2: =VLOOKUP(N2,Stoffdaten!L9:W33,12) -> 16 | Y2: für Regeneration & | AA2: =Z48*AA48/AF34+Z54 -> 1.161664474 | AB2: m³/h | AC2: =SUM(Z5:AC5) -> 1.161664474 | AE2: m³/h | AF2: =AF48*AF35/AF33+AF54 -> 1.14048845 | AG2: Durchn. Luftbedarf gesammt | AJ2: =SUM(AG5:AJ5) -> 1.14048845
E3: =IF(ISNA(E2),0,E2) -> 1 | Y3: Druckaufbau | AA3: =100/'Be-Um-rechnung'!C3*Stoffdaten!AA2 -> 14.52080592 | AB3: % | AE3: % | AF3: =100/'Be-Um-rechnung'!C3*Stoffdaten!AF2 -> 14.25610563 | AG3: Durchn. Luftbedarf gesammt
Z4: L/sec | AA4: m³/min | AB4: m³/h | AC4: cfm | AG4: L/sec | AH4: m³/min | AI4: m³/h | AJ4: cfm
Y5: m³/h | Z5: =IF('Be-Um-rechnung'!A29=1,Stoffdaten!AA2*0.27777778,0) -> 0 | AA5: =IF('Be-Um-rechnung'!A29=2,Stoffdaten!AA2*0.0166666667,0) -> 0 | AB5: =IF('Be-Um-rechnung'!A29=3,Stoffdaten!AA2*1,0) -> 1.161664474 | AC5: =IF('Be-Um-rechnung'!A29=4,Stoffdaten!AA2*0.5885778,0) -> 0 | AF5: m³/h | AG5: =IF('Be-Um-rechnung'!A29=1,Stoffdaten!AF2*0.27777778,0) -> 0 | AH5: =IF('Be-Um-rechnung'!A29=2,Stoffdaten!AF2*0.0166666667,0) -> 0 | AI5: =IF('Be-Um-rechnung'!A29=3,Stoffdaten!AF2*1,0) -> 1.14048845 | AJ5: =IF('Be-Um-rechnung'!A29=4,Stoffdaten!AF2*0.5885778,0) -> 0
L8: Größe | M8: V_max in m³/h | N8: TYP K-MT | O8: Düse ohne ZHM | P8: Düse mit ZHM | Q8: Behälter-volumen m³ | R8: Trockenmittel/Behälter MS4A [kg] | S8: Schüttvolumen | T8: Dimensionen (AxBxC) [mm] | U8: Gewicht [kg] | V8: Anschluß | W8: max. Betriebsdruck | Z8: Berechnung mögliche variable Zeit bei Trocknergrösse 20 für nominale Belastung | AF8: Berechnung mögliche variable Zeit für minnimale Last
L9: 0 | M9: 0 | N9: 1 | O9: --- | P9: --- | Z9: =M2*$D$156 -> 8.0000001 | AA9: Eintritt m³/h | AF9: ='Be-Um-rechnung'!C3 -> 8 | AG9: =AA9 -> Eintritt m³/h | AN9: 0 | AO9: 5 | AS9: 4
C10: Trockner-Eintrittstemperatur in °F | L10: 1 | M10: 8.0000001 | N10: 2 | O10: 0.7 | P10: 0.7 | Q10: 0.001 | R10: 0.8 | S10: 1.17 | T10: 326 x 400 x 216 | U10: 11.5 | V10: 1/4 " | W10: 16 | Z10: 35 | AA10: Eintritt °C | AF10: ='Be-Um-rechnung'!C5 -> 35 | AG10: =AA10 -> Eintritt °C | AN10: 40.1 | AO10: 4 | AS10: 3
A11: Für einen Drucktaupunkt | C11: =C13*1.8+32 -> 77 | D11: 86 | E11: 95 | F11: 104 | G11: 113 | H11: 122 | L11: 2 | M11: 15.0000001 | N11: 3 | O11: 0.9 | P11: 0.9 | Q11: 0.002 | R11: 1.7 | S11: 2.2 | T11: 326 x 575 x 216 | U11: 15.5 | V11: 1/4 " | W11: 16 | Z11: =(273.15+35)/(273.15+20) -> 1.051168344 | AA11: v korrektur in Nm³ | AF11: =(273.15+AF10)/(273.15+20) -> 1.051168344 | AG11: v korrektur in Nm³ | AN11: 45.1 | AO11: 3 | AS11: 2
A12: von -25 °C und -40 °C | C12: Trockner-Eintrittstemperatur in °C | L12: 3 | M12: 25.0000001 | N12: 4 | O12: 1.1 | P12: 1.1 | Q12: 0.004 | R12: 2.7 | S12: 3.6 | T12: 326 x 825 x 216 | U12: 20 | V12: 1/4 " | W12: 16 | Z12: =Z9*Z11 -> 8.409346856 | AA12: Nm³/h | AF12: =AF9*AF11 -> 8.409346751 | AG12: Nm³/h | AN12: 50.1 | AO12: 3 | AS12: 2
A13: Mindest-Betriebsdruck | C13: 25 | D13: 30 | E13: 35 | F13: 40 | G13: 45 | H13: 50 | L13: 4 | M13: 35.0000001 | N13: 6 | O13: 1.3 | P13: 1.3 | Q13: 0.005 | R13: 3.9 | S13: 5.1 | T13: 326 x 1075 x 216 | U13: 25 | V13: 1/4 " | W13: 16 | Z13: 7 | AA13: bar (g) | AF13: ='Be-Um-rechnung'!C4 -> 7 | AG13: bar (g) | AN13: 60.1 | AO13: ERROR | AS13: ERROR
A14: in bar (e) oder (g) | C14: 1 | D14: 2 | E14: 3 | F14: 4 | G14: 5 | H14: 6 | L14: 6 | M14: 56.0000001 | N14: 7 | O14: 1.7 | P14: 1.7 | Q14: 0.009 | R14: 6.5 | S14: 8.6 | T14: 496 x 1203 x 300 | U14: 48 | V14: 1/2 " | W14: 16 | Z14: =Z12/(Z13+1) -> 1.051168357 | AA14: Betriebsvolumen Nm³ / h | AF14: =AF12/(AF13+1) -> 1.051168344 | AG14: Betriebsvolumen Nm³ / h
B15: 5 | C15: 0.8 | D15: 0.79 | E15: 0.75 | F15: 0.64 | G15: 0.61 | H15: 0.59 | L15: 7 | M15: 72.0000001 | N15: 8 | O15: 1.9 | P15: 1.9 | Q15: 0.011 | R15: 8.2 | S15: 10.83 | T15: 496 x 1428 x 300 | U15: 56.5 | V15: 1/2 " | W15: 16 | Z15: =Z14/60 -> 0.01751947262 | AA15: Betriebsvolumen Nm³ / min | AF15: =AF14/60 -> 0.0175194724 | AG15: Betriebsvolumen Nm³ / min | AN15: =AF10 -> 35 | AO15: =VLOOKUP(AN15,AN9:AO13,2) -> 5 | AS15: =VLOOKUP(AN15,AN9:AS13,6) -> 4
B16: 6 | C16: 0.92 | D16: 0.91 | E16: 0.89 | F16: 0.78 | G16: 0.73 | H16: 0.67 | L16: 8 | M16: 86.0000001 | N16: 10 | O16: 2.1 | P16: 2.1 | Q16: 0.013 | R16: 9.6 | S16: 12.55 | T16: 496 x 1628 x 300 | U16: 62.5 | V16: 3/4 " | W16: 16 | Z16: =C153 -> 39.62562996 | AA16: Wasserfracht g / Nm³ | AF16: =C154 -> 39.62562996 | AG16: Wasserfracht g / Nm³ | AN16: 1 | AO16: =AO15 -> 5 | AR16: 1 | AS16: =AS15 -> 4
B17: 7 | C17: 1.03 | D17: 1.02 | E17: 1 | F17: 0.91 | G17: 0.82 | H17: 0.79 | L17: 10 | M17: 105.0000001 | N17: 15 | O17: 2.3 | P17: 2.5 | Q17: 0.02 | R17: 13.9 | S17: 20.17 | T17: 870 x 1420 x 490 | U17: 120 | V17: 1 " | W17: 16 | Z17: =(Z15*Z16)/1000 -> 0.000694220139 | AA17: kg / min | AF17: =(AF15*AF16)/1000 -> 0.0006942201303 | AG17: kg / min | AN17: 2 | AO17: 3 | AR17: 2 | AS17: 2
B18: 8 | C18: 1.16 | D18: 1.15 | E18: 1.13 | F18: 1 | G18: 0.94 | H18: 0.86 | L18: 15 | M18: 145.0000001 | N18: 20 | O18: 2.8 | P18: 3.1 | Q18: 0.026 | R18: 18.3 | S18: 26.42 | T18: 870 x 1750 x 490 | U18: 142 | V18: 1 " | W18: 16 | Z18: ='Be-Um-rechnung'!C6 -> -40 | AA18: Dtp. | AF18: ='Be-Um-rechnung'!C6 -> -40 | AG18: Dtp. | AN18: 3 | AO18: 4 | AR18: 3 | AS18: 3
B19: 9 | C19: 1.3 | D19: 1.28 | E19: 1.26 | F19: 1.08 | G19: 1.03 | H19: 0.99 | L19: 20 | M19: 200.0000001 | N19: 25 | O19: 3.4 | P19: 3.4 | Q19: 0.043 | R19: 22.8 | S19: 33.01 | T19: 670 x 1530 x 490 | U19: 143 | V19: 1 " | W19: 16 | Z19: =IF('Be-Um-rechnung'!C6=-70,Stoffdaten!A32,Stoffdaten!B32) -> 0.45 | AA19: Beladungsfaktor | AF19: =Z19 -> 0.45 | AG19: Beladungsfaktor | AN19: 4 | AO19: 5 | AR19: 4 | AS19: 4
B20: 10 | C20: 1.39 | D20: 1.37 | E20: 1.31 | F20: 1.16 | G20: 1.07 | H20: 1.03 | L20: 25 | M20: 255.0000001 | N20: 35 | O20: 3.7 | P20: 3.7 | Q20: 0.044 | R20: 30.3 | S20: 43.8 | T20: 670 x 1760 x 530 | U20: 173 | V20: 1 1/2 " | W20: 16 | Z20: =(Z17/Z19)*100 -> 0.154271142 | AA20: kg TroMi erf. / min Ads.-Zeit | AF20: =(AF17/AF19)*100 -> 0.1542711401 | AG20: kg TroMi erf. / min Ads.-Zeit | AN20: 5 | AO20: 6 | AR20: 5 | AS20: 5
B21: 11 | C21: 1.52 | D21: 1.49 | E21: 1.36 | F21: 1.24 | G21: 1.1 | H21: 1.07 | L21: 35 | M21: 350.0000001 | N21: 45 | O21: 4.1 | P21: 4.5 | Q21: 0.057 | R21: 39.5 | S21: 57.23 | T21: 830 x 1810 x 585 | U21: 210 | V21: 2 1/2 " | W21: 16 | Z21: =Z20*Z34 -> 0.77135571 | AA21: kg TroMi erf. / 5 Minuten Zyklus | AF21: =AF20*AF34 -> 0.7713557004 | AG21: kg TroMi erf. / 5 Minuten Zyklus | AN21: 6 | AO21: 8 | AR21: 6 | AS21: 6
B22: 12 | C22: 1.61 | D22: 1.61 | E22: 1.49 | F22: 1.36 | G22: 1.23 | H22: 1.18 | L22: 45 | M22: 420.0000001 | N22: 60 | O22: 4.9 | P22: 4.9 | Q22: 0.072 | R22: 49.4 | S22: 71.54 | T22: 860 x 1820 x 605 | U22: 249 | V22: 3 1/2 " | W22: 16 | Z22: =R2 -> 0.8 | AA22: Menge Trockenmittel kg | AF22: =R2 -> 0.8 | AG22: Menge Trockenmittel kg | AN22: 7 | AO22: 10 | AR22: 7 | AS22: 7
B23: 13 | C23: 1.75 | D23: 1.75 | E23: 1.62 | F23: 1.47 | G23: 1.35 | H23: 1.29 | L23: 60 | M23: 620.0000001 | N23: 75 | O23: 6 | P23: 6 | Q23: 0.102 | R23: 69.2 | S23: 100.15 | T23: 910 x 1870 x 635 | U23: 277 | V23: 2 " | W23: 16 | Z23: =Z21/Z22 -> 0.9641946375 | AA23: Reserve Ausnutzung Trockenmittel | AF23: =(AF21/AF22+1)/2 -> 0.9820973127 | AG23: Reserve Ausnutzung Trockenmittel | AN23: 8 | AO23: 12 | AR23: 8 | AS23: 8
B24: 14 | C24: 1.89 | D24: 1.89 | E24: 1.71 | F24: 1.57 | G24: 1.46 | H24: 1.38 | L24: 75 | M24: 750.0000001 | N24: 95 | O24: 6.6 | P24: 6.6 | Q24: 0.136 | R24: 94.3 | S24: 136.47 | T24: 1020 x 2000 x 640 | U24: 408 | V24: 2 " | W24: 16 | Z24: =AF24 -> 0.9820973127 | AA24: theor. max. Ausnutzung Trockenmittel bei DTP.-Steuerung | AF24: =AF23 -> 0.9820973127 | AG24: theor. max. Ausnutzung Trockenmittel bei DTP.-Steuerung | AN24: 9 | AO24: 15 | AR24: 9 | AS24: 9
B25: 15 | C25: 2 | D25: 2 | E25: 1.79 | F25: 1.67 | G25: 1.57 | H25: 1.46 | L25: 95 | M25: 940.0000001 | N25: 120 | O25: 7.4 | P25: 7.4 | Q25: 0.173 | R25: 121.7 | S25: 176.09 | T25: 1020 x 2020 x 670 | U25: 510 | V25: 2 1/2 " | W25: 16 | Z25: =IF(Z24>1,1,Z24) -> 0.9820973127 | AA25: max. Ausnutzung Trockenmittel bei DTP.-Steuerung | AF25: =Z25 -> 0.9820973127 | AG25: max. Ausnutzung Trockenmittel bei DTP.-Steuerung | AN25: 10 | AO25: 20 | AR25: 10 | AS25: 10
A26: Für einen Drucktaupunkt von -70 °C (bei max. 35 °C Eintrittstemperatur, 100 % relative Feuchte, gasdichter Verrohrung) | L26: 120 | M26: 1200 | N26: 150 | O26: 7.8 | P26: 8.3 | R26: 152.6 | S26: 220.89 | T26: 1060 x 2080 x 840 | U26: 640 | V26: DN 50 | W26: 10 | Z26: 0.9 | AA26: max. Ausnutzung Trockenmittel bei DTP.-Steuerung | AF26: =Z26 -> 0.9 | AG26: max. Ausnutzung Trockenmittel bei DTP.-Steuerung | AN26: 11 | AO26: 25 | AR26: 11 | AS26: 11
A27: 0.53 | L27: 150 | M27: 1550 | N27: 200 | O27: 8.9 | P27: 9.2 | R27: 187.9 | S27: 271.97 | T27: 1270 x 2120 x 900 | U27: 770 | V27: DN 65 | W27: 10 | Z27: =MAX(Z25:Z26) -> 0.9820973127 | AA27: Ausnutzung Trockenmittel | AF27: =MAX(AF25:AF26) -> 0.9820973127 | AG27: Ausnutzung Trockenmittel | AN27: 12 | AO27: 30 | AR27: 12 | AS27: 12
L28: 200 | M28: 2000 | N28: 250 | O28: 2x7,1 | P28: 2x7,7 | R28: 264.4 | S28: 382.71 | T28: 1350 x 2160 x 990 | U28: 955 | V28: DN 65 | W28: 10 | Z28: =Z22*Z27/Z20 -> 5.092837455 | AA28: theor variable Zeit | AF28: =AF22*AF27/AF20 -> 5.092837518 | AG28: theor variable Zeit | AN28: 13 | AO28: 35 | AR28: 13 | AS28: 13
L29: 250 | M29: 2500 | N29: 300 | O29: 2x8,0 | P29: 2x8,3 | R29: 309.5 | S29: 447.97 | T29: 1530 x 2210 x 1040 | U29: 1075 | V29: DN 80 | W29: 10 | AN29: 14 | AO29: 40 | AR29: 14 | AS29: 14
L30: 300 | M30: 3000 | N30: 380 | O30: 2x8,7 | P30: 2x9,1 | R30: 372.1 | S30: 538.63 | T30: 1600 x 2255 x 1100 | U30: 1500 | V30: DN 80 | W30: 10 | AN30: 15 | AO30: 45 | AR30: 15 | AS30: 15
L31: 380 | M31: 3800 | N31: 500 | O31: 2x9,8 | P31: 2x10,3 | R31: 470.9 | S31: 681.53 | T31: 1875 x 2385 x 1200 | U31: 1990 | V31: DN 100 | W31: 10 | Z31: Limit max. Ads. Zyklus | AF31: Limit max. Ads. Zyklus | AN31: 16 | AO31: 50 | AR31: 16 | AS31: 16
A32: 0.30608934 | B32: 0.45 | C32: 0.1 | L32: 500 | M32: 4850 | N32: 600 | O32: 2x11,1 | P32: 2x12 | R32: 640.4 | S32: 926.96 | T32: 1925 x 2660 x 1250 | U32: 2410 | V32: DN 100 | W32: 10 | Z32: 60 | AA32: max. Ads. Bei K(E)-MT | AF32: 60 | AG32: =AA32 -> max. Ads. Bei K(E)-MT | AN32: 17 | AO32: 55 | AR32: 17 | AS32: 17
B33: Temp | C33: Wasser | L33: 600 | M33: 6100 | O33: 2x12,5 | P33: 2x13,4 | R33: 800.2 | S33: 1158.19 | T33: 2160 x 2820 x 1565 | U33: 2850 | V33: DN 125 | W33: 10 | Z33: =MIN(Z28,Z32) -> 5.092837455 | AA33: max. variabler Ads.Zyklus | AF33: =MIN(AF28,AF32) -> 5.092837518 | AG33: =AA33 -> max. variabler Ads.Zyklus | AN33: 18 | AO33: 60 | AR33: 18 | AS33: 18
B34: -90 | C34: 0.0001 | Z34: 5 | AA34: standard Ads.-Zyklus | AF34: =AO34 -> 5 | AG34: standard Ads.-Zyklus | AN34: 1 | AO34: =VLOOKUP(AN34,AN16:AO33,2) -> 5 | AR34: 19 | AS34: 19
B35: -85 | C35: 0.00025 | Z35: 4 | AA35: standard Reg. Zklus | AF35: =AS37 -> 4 | AG35: standard Reg. Zklus | AO35: =IF(AR37<1,"ERROR",AO34) -> 5 | AR35: 20 | AS35: 20
B36: -80 | C36: 0.0006 | Z36: Berechung Reg.-Luftbedarf | AF36: Berechung Reg.-Luftbedarf | AR36: 1 | AS36: =VLOOKUP(AR36,AR16:AS35,2) -> 4
B37: -75 | C37: 0.0013 | Y37: % | Z37: =D157 -> 13.05 | AA37: Reg.-Luft Variabel | AF37: =C158 -> 13.05 | AG37: =AA37 -> Reg.-Luft Variabel | AR37: =AO34-AS36 -> 1 | AS37: =IF(AR37<1,"ERROR",AS36) -> 4
B38: -70 | C38: 0.0033 | Y38: % | Z38: =Z33/Z34*Z37 -> 13.29230576 | AA38: Reg. Luft max. Beladung
B39: -65 | C39: 0.0064 | Y39: m³/h | Z39: =Z38*Z9/100 -> 1.063384474 | AA39: mittl. Reg.-Luft (bei nominaler Voll-Beladung) | AF39: =AF37*AF9/100 -> 1.044 | AG39: mittl. Reg.-Luft Variabel mit ZHM
B40: -60 | C40: 0.011 | Z40: =AF40 -> 0 | AA40: Aufnahmekapazitätsverhältnis durch andere Drucklufttemp. als 35°C | AF40: =(C156/C153)-1 -> 0 | AG40: =AA40 -> Aufnahmekapazitätsverhältnis durch andere Drucklufttemp. als 35°C
B41: -59 | C41: 0.013 | Z41: 1 | AA41: Korrekturfaktur Einfluss Drucklufttemp. | AF41: =Z41 -> 1 | AG41: =AA41 -> Korrekturfaktur Einfluss Drucklufttemp.
B42: -58 | C42: 0.015 | Z42: =1+Z40*Z41 -> 1 | AA42: korr. Aufnahmekapazitätsverhältnis durch andere Drucklufttemp. als 35°C | AF42: =1+AF40*AF41 -> 1 | AG42: korr. Aufnahmekapazitätsverhältnis durch andere Drucklufttemp. als 35°C
B43: -57 | C43: 0.017 | Z43: =IF(Z42>C32,Z42,C32) -> 1 | AA43: Korrektur Drucklufttemp | AF43: =IF(AF42>C32,AF42,C32) -> 1 | AG43: Korrektur Drucklufttemp
B44: -56 | C44: 0.019 | Y44: m³/h | Z44: =Z39/Z43 -> 1.063384474 | AA44: korrigierter mittl. Reg.-Luft (bei nominaler Voll-Beladung) | AF44: =AF39/AF43 -> 1.044 | AG44: korrigierter mittl. Reg.-Luft Variabel
B45: -55 | C45: 0.021 | Y45: m³/h | Z45: =Z9*AA45/100 -> 0.480000006 | AA45: 6 | AB45: % minimum Regeneration | AF45: =AF9*AG45/100 -> 0.48 | AG45: =AA45 -> 6 | AH45: % minimum Regeneration
B46: -54 | C46: 0.024 | Y46: m³/h | Z46: =MAX(Z44:Z45) -> 1.063384474 | AA46: korrigierter mittl. Reg.-Luft (bei nominaler Voll-Beladung)
B47: -53 | C47: 0.027 | Y47: m³/h | Z47: =Z46/Z35*Z34 -> 1.329230592 | AA47: max. Reg.-Luft (by Standard Zyklus-Verhältniss 4/5) | AF47: =MAX(AF44:AF45) -> 1.044 | AG47: korrigierter mittl. Reg.-Luft Variabel
B48: -52 | C48: 0.03 | Y48: m³/h | Z48: =Z47*4/AA48 -> 1.329230592 | AA48: =AS37 -> 4 | AF48: =Z48 -> 1.329230592 | AG48: =AA48 -> 4
B49: -51 | C49: 0.034 | Z49: Druckaufbau | AF49: Druckaufbau
B50: -50 | C50: 0.038 | Y50: m³ | Z50: =S2/1000 -> 0.00117 | AA50: Behältervolumen | AF50: =Z50 -> 0.00117 | AG50: =AA50 -> Behältervolumen
B51: -49 | C51: 0.043 | Z51: ='Be-Um-rechnung'!C4 -> 7 | AA51: Betriebsdruck (bar(g)) | AF51: ='Be-Um-rechnung'!C4 -> 7 | AG51: =AA51 -> Betriebsdruck (bar(g))
B52: -48 | C52: 0.048 | Y52: m³ | Z52: =Z51*Z50 -> 0.00819 | AA52: Druckaufbau-Volumen | AF52: =AF51*AF50 -> 0.00819 | AG52: Druckaufbau-Volumen
B53: -47 | C53: 0.054 | Z53: =60/AO34 -> 12 | AA53: Anzahl Druckaufbau / Stunde | AF53: =60/AF33 -> 11.78125157 | AG53: Anzahl Druckaufbau / Stunde
B54: -46 | C54: 0.06 | Y54: m³/h | Z54: =Z53*Z52 -> 0.09828 | AA54: mittl. Bedarf Druckaufbau | AF54: =AF53*AF52 -> 0.09648845034 | AG54: mittl. Bedarf Druckaufbau
B55: -45 | C55: 0.067 | Y55: m³/h | Z55: =Z52*60/AB55 -> 0.4914 | AA55: max Bedarf während | AB55: =Z34-Z35 -> 1 | AF55: =Z55 -> 0.4914 | AG55: max Bedarf während 1,00 minutes
B56: -44 | C56: 0.075
B57: -43 | C57: 0.083
B58: -42 | C58: 0.093
B59: -41 | C59: 0.104
B60: -40 | C60: 0.117
B61: -39 | C61: 0.13
B62: -38 | C62: 0.144
B63: -37 | C63: 0.16
B64: -36 | C64: 0.178
B65: -35 | C65: 0.198
B66: -34 | C66: 0.22
B67: -33 | C67: 0.244
B68: -32 | C68: 0.271
B69: -31 | C69: 0.301
B70: -30 | C70: 0.33
B71: -29 | C71: 0.37
B72: -28 | C72: 0.41
B73: -27 | C73: 0.46
B74: -26 | C74: 0.51
B75: -25 | C75: 0.55
B76: -24 | C76: 0.6
B77: -23 | C77: 0.66
B78: -22 | C78: 0.73
B79: -21 | C79: 0.8
B80: -20 | C80: 0.88
B81: -19 | C81: 0.96
B82: -18 | C82: 1.05
B83: -17 | C83: 1.15
B84: -16 | C84: 1.27
B85: -15 | C85: 1.38
B86: -14 | C86: 1.51
B87: -13 | C87: 1.65
B88: -12 | C88: 1.8
B89: -11 | C89: 1.96
B90: -10 | C90: 2.156
B91: -9 | C91: 2.339
B92: -8 | C92: 2.537
B93: -7 | C93: 2.751
B94: -6 | C94: 2.984
B95: -5 | C95: 3.238
B96: -4 | C96: 3.513
B97: -3 | C97: 3.889
B98: -2 | C98: 4.135
B99: -1 | C99: 4.487
B100: 0 | C100: 4.813438474
B101: 1 | C101: 5.159319153
B102: 2 | C102: 5.526646141
B103: 3 | C103: 5.916524919
B104: 4 | C104: 6.330105262
B105: 5 | C105: 6.768582415
B106: 6 | C106: 7.233198278
B107: 7 | C107: 7.725242596
B108: 8 | C108: 8.246054163
B109: 9 | C109: 8.797022027
B110: 10 | C110: 9.379586703
B111: 11 | C111: 9.995241391
B112: 12 | C112: 10.6455332
B113: 13 | C113: 11.33206437
B114: 14 | C114: 12.0564935
B115: 15 | C115: 12.82053679
B116: 16 | C116: 13.62596928
B117: 17 | C117: 14.47462604
B118: 18 | C118: 15.36840348
B119: 19 | C119: 16.30926051
B120: 20 | C120: 17.29921981
B121: 21 | C121: 18.34036908
B122: 22 | C122: 19.4348622
B123: 23 | C123: 20.58492054
B124: 24 | C124: 21.79283412
B125: 25 | C125: 23.06096284
B126: 26 | C126: 24.39173771
B127: 27 | C127: 25.78766203
B128: 28 | C128: 27.25131258
B129: 29 | C129: 28.78534084
B130: 30 | C130: 30.39247415
B131: 31 | C131: 32.07551687
B132: 32 | C132: 33.83735156
B133: 33 | C133: 35.68094012
B134: 34 | C134: 37.60932493
B135: 35 | C135: 39.62562996
B136: 36 | C136: 41.73306192
B137: 37 | C137: 43.93491133
B138: 38 | C138: 46.23455359
B139: 39 | C139: 48.63545011
B140: 40 | C140: 51.14114931
B141: 41 | C141: 53.75528766
B142: 42 | C142: 56.48159074
B143: 43 | C143: 59.32387423
B144: 44 | C144: 62.28604486
B145: 45 | C145: 65.37210144 | E145: -40 | F145: 13.05
B146: 46 | C146: 68.58613577 | E146: -70 | F146: 17.64
B147: 47 | C147: 71.93233357
B148: 48 | C148: 75.4149754
B149: 49 | C149: 79.03843757
B150: 50 | C150: 82.80719295
B151: 51 | C151: 86.173
B152: ='Be-Um-rechnung'!C6 -> -40 | C152: =VLOOKUP(B152,B34:C151,2) -> 0.117
B153: 35 | C153: =C135 -> 39.62562996
B154: ='Be-Um-rechnung'!C5 -> 35 | C154: =VLOOKUP(B154,B34:C151,2) -> 39.62562996
C155: =IF(B154>35,(C154-C153)*0.5,(C154-C153)*0.3) -> 0
C156: =C153+C155 -> 39.62562996 | D156: =F145/D157 -> 1
C157: =$C$156/(1+'Be-Um-rechnung'!$C$4)/(C153/8) -> 1 | D157: =IF('Be-Um-rechnung'!C6=-70,Stoffdaten!F146,Stoffdaten!F145) -> 13.05
C158: =$D$157*C157 -> 13.05

Sheet ArtikelNr. (hidden)
A1: 1 | B1: 2 | C1: 3 | D1: 4 | E1: 5 | F1: 6 | G1: 7 | H1: 8 | I1: 9 | J1: 10 | K1: 11 | L1: 12 | M1: 13 | N1: 14
B2: Trockner-BestellNr. | C2: Trockner-BestellNr. | D2: Blendenkit | E2: Taupunktmessung | F2: Signaldoppler | G2: Reg.Gas-Rückführung | H2: Anfahrvorrichtung | I2: Feinfilterschalldämpfer
A3: =VLOOKUP(Stoffdaten!N2,ArtikelNr.!A4:G19,1) -> 1 | B3: =VLOOKUP(Stoffdaten!N2,ArtikelNr.!A4:G27,2) -> K1/16D2-G230M | C3: =VLOOKUP(Stoffdaten!N2,ArtikelNr.!A4:G27,3) -> K1/16D2-G230MT | D3: =VLOOKUP(Stoffdaten!N2,ArtikelNr.!A4:G27,4) -> VASNOZ/K1-K95 | E3: =VLOOKUP(Stoffdaten!N2,ArtikelNr.!A4:G27,5) -> VASPDP/K1-K95 | F3: =VLOOKUP(Stoffdaten!N2,ArtikelNr.!A4:G27,6) -> VASMBS420 | G3: =VLOOKUP(Stoffdaten!N2,ArtikelNr.!A4:N27,7) -> VASRGR/K1-K8 | H3: =VLOOKUP(Stoffdaten!N2,ArtikelNr.!A4:N27,8) -> VASVPB/K1-K4/08 | I3: =VLOOKUP(Stoffdaten!N2,ArtikelNr.!A4:N27,9) -> VASFS3/K1-K4
A4: 1 | B4: K1/16D2-G230M | C4: K1/16D2-G230MT | D4: VASNOZ/K1-K95 | E4: VASPDP/K1-K95 | F4: VASMBS420 | G4: VASRGR/K1-K8 | H4: VASVPB/K1-K4/08 | I4: VASFS3/K1-K4
A5: 2 | B5: K2/16D2-G230M | C5: K2/16D2-G230MT | D5: VASNOZ/K1-K95 | E5: VASPDP/K1-K95 | F5: VASMBS420 | G5: VASRGR/K1-K8 | H5: VASVPB/K1-K4/08 | I5: VASFS3/K1-K4
A6: 3 | B6: K3/16D2-G230M | C6: K3/16D2-G230MT | D6: VASNOZ/K1-K95 | E6: VASPDP/K1-K95 | F6: VASMBS420 | G6: VASRGR/K1-K8 | H6: VASVPB/K1-K4/08 | I6: VASFS3/K1-K4
A7: 4 | B7: K4/16D2-G230M | C7: K4/16D2-G230MT | D7: VASNOZ/K1-K95 | E7: VASPDP/K1-K95 | F7: VASMBS420 | G7: VASRGR/K1-K8 | H7: VASVPB/K1-K4/08 | I7: VASFS3/K1-K4
A8: 6 | B8: K6/16D2-G230M | C8: K6/16D2-G230MT | D8: VASNOZ/K1-K95 | E8: VASPDP/K1-K95 | F8: VASMBS420 | G8: VASRGR/K1-K8 | H8: VASVPB/K6-K7/15 | I8: VASFS3/K6-K8
A9: 7 | B9: K7/16D2-G230M | C9: K7/16D2-G230MT | D9: VASNOZ/K1-K95 | E9: VASPDP/K1-K95 | F9: VASMBS420 | G9: VASRGR/K1-K8 | H9: VASVPB/K6-K7/15 | I9: VASFS3/K6-K8
A10: 8 | B10: K8/16D2-G230M | C10: K8/16D2-G230MT | D10: VASNOZ/K1-K95 | E10: VASPDP/K1-K95 | F10: VASMBS420 | G10: VASRGR/K1-K8 | H10: VASVPB/K8/20 | I10: VASFS3/K6-K8
A11: 10 | B11: K10/16D2-G230M | C11: K10/16D2-G230MT | D11: VASNOZ/K1-K95 | E11: VASPDP/K1-K95 | F11: VASMBS420 | G11: VASRGR/K10-K95 | H11: VASVPB/K10-K20/25 | I11: VASFS3/K10-K15
A12: 15 | B12: K15/16D2-G230M | C12: K15/16D2-G230MT | D12: VASNOZ/K1-K95 | E12: VASPDP/K1-K95 | F12: VASMBS420 | G12: VASRGR/K10-K95 | H12: VASVPB/K10-K20/25 | I12: VASFS3/K10-K15
A13: 20 | B13: K20/16D2-G230M | C13: K20/16D2-G230MT | D13: VASNOZ/K1-K95 | E13: VASPDP/K1-K95 | F13: VASMBS420 | G13: VASRGR/K10-K95 | H13: VASVPB/K10-K20/25 | I13: VASFS3/K20-K25
A14: 25 | B14: K25/16D2-G230M | C14: K25/16D2-G230MT | D14: VASNOZ/K1-K95 | E14: VASPDP/K1-K95 | F14: VASMBS420 | G14: VASRGR/K10-K95 | H14: VASVPB/K25-K45/40 | I14: VASFS3/K20-K25
A15: 35 | B15: K35/16D2-G230M | C15: K35/16D2-G230MT | D15: VASNOZ/K1-K95 | E15: VASPDP/K1-K95 | F15: VASMBS420 | G15: VASRGR/K10-K95 | H15: VASVPB/K25-K45/40 | I15: VASFS3/K35-K60
A16: 45 | B16: K45/16D2-G230M | C16: K45/16D2-G230MT | D16: VASNOZ/K1-K95 | E16: VASPDP/K1-K95 | F16: VASMBS420 | G16: VASRGR/K10-K95 | H16: VASVPB/K25-K45/40 | I16: VASFS3/K35-K60
A17: 60 | B17: K60/16D2-G230M | C17: K60/16D2-G230MT | D17: VASNOZ/K1-K95 | E17: VASPDP/K1-K95 | F17: VASMBS420 | G17: VASRGR/K10-K95 | H17: VASVPB/K60-K75/50 | I17: VASFS3/K35-K60
A18: 75 | B18: K75/16D2-G230M | C18: K75/16D2-G230MT | D18: VASNOZ/K1-K95 | E18: VASPDP/K1-K95 | F18: VASMBS420 | G18: VASRGR/K10-K95 | H18: VASVPB/K60-K75/50 | I18: VASFS3/K75-K95
A19: 95 | B19: K95/16D2-G230M | C19: K95/16D2-G230MT | D19: VASNOZ/K1-K95 | E19: VASPDP/K1-K95 | F19: VASMBS420 | G19: VASRGR/K10-K95 | H19: VASVPB/K95/65 | I19: VASFS3/K75-K95
A20: 120 | B20: K120/10D1-F230M | C20: K120/10D1-F230MT | D20: =Language!D30 -> Please consult Parker! | E20: =Language!D30 -> Please consult Parker! | F20: =Language!D30 -> Please consult Parker! | G20: =Language!D30 -> Please consult Parker! | H20: =Language!D30 -> Please consult Parker! | I20: =Language!D30 -> Please consult Parker!
A21: 150 | B21: K150/10D1-F230M | C21: K150/10D1-F230MT | D21: =Language!D30 -> Please consult Parker! | E21: =Language!D30 -> Please consult Parker! | F21: =Language!D30 -> Please consult Parker! | G21: =Language!D30 -> Please consult Parker! | H21: =Language!D30 -> Please consult Parker! | I21: =Language!D30 -> Please consult Parker!
A22: 200 | B22: K200/10D1-F230M | C22: K200/10D1-F230MT | D22: =Language!D30 -> Please consult Parker! | E22: =Language!D30 -> Please consult Parker! | F22: =Language!D30 -> Please consult Parker! | G22: =Language!D30 -> Please consult Parker! | H22: =Language!D30 -> Please consult Parker! | I22: =Language!D30 -> Please consult Parker!
A23: 250 | B23: K250/10D1-F230M | C23: K250/10D1-F230MT | D23: =Language!D30 -> Please consult Parker! | E23: =Language!D30 -> Please consult Parker! | F23: =Language!D30 -> Please consult Parker! | G23: =Language!D30 -> Please consult Parker! | H23: =Language!D30 -> Please consult Parker! | I23: =Language!D30 -> Please consult Parker!
A24: 300 | B24: K300/10D1-F230M | C24: K300/10D1-F230MT | D24: =Language!D30 -> Please consult Parker! | E24: =Language!D30 -> Please consult Parker! | F24: =Language!D30 -> Please consult Parker! | G24: =Language!D30 -> Please consult Parker! | H24: =Language!D30 -> Please consult Parker! | I24: =Language!D30 -> Please consult Parker!
A25: 380 | B25: K380/10D1-F230M | C25: K380/10D1-F230MT | D25: =Language!D30 -> Please consult Parker! | E25: =Language!D30 -> Please consult Parker! | F25: =Language!D30 -> Please consult Parker! | G25: =Language!D30 -> Please consult Parker! | H25: =Language!D30 -> Please consult Parker! | I25: =Language!D30 -> Please consult Parker!
A26: 500 | B26: K500/10D1-F230M | C26: K500/10D1-F230MT | D26: =Language!D30 -> Please consult Parker! | E26: =Language!D30 -> Please consult Parker! | F26: =Language!D30 -> Please consult Parker! | G26: =Language!D30 -> Please consult Parker! | H26: =Language!D30 -> Please consult Parker! | I26: =Language!D30 -> Please consult Parker!
A27: 600 | B27: K600/10D1-F230M | C27: K600/10D1-F230MT | D27: =Language!D30 -> Please consult Parker! | E27: =Language!D30 -> Please consult Parker! | F27: =Language!D30 -> Please consult Parker! | G27: =Language!D30 -> Please consult Parker! | H27: =Language!D30 -> Please consult Parker! | I27: =Language!D30 -> Please consult Parker!

Sheet Language (hidden)
D2: =Cover!C2 -> 2 | E2: Deutsch | F2: English | G2: Français | H2: Italiano | I2: Español | J2: Polish | K2: … | L2: … | M2: …
C3: 1 | D3: Auswahl | E3: 1 | F3: 2 | G3: 3 | H3: 4 | I3: 5 | J3: 6 | K3: 7 | L3: 8 | M3: 9
C4: =C3+1 -> 2 | D4: =HLOOKUP($D$2,Language!$E$3:M50,C4) -> Ambient temperature | E4: Umgebungstemperatur | F4: Ambient temperature | G4: Temp Ambiante | H4: Temperatura ambiente | I4: Temperatura ambiente | J4: Temperatura otoczenia
C5: =C4+1 -> 3 | D5: =HLOOKUP($D$2,Language!$E$3:M51,C5) -> Compressed air flow rate at 20°C and 1 bar a | E5: Volumenstrom bezogen auf 20°C und 1 bar a | F5: Compressed air flow rate at 20°C and 1 bar a | G5: Débit air comprimé à 20°C et 1 bar abs | H5: Portata riferita a 20°C e 1 bar ass. | I5: Caudal de aire comprimido a 20°C y 1 bar de presión absoluta | J5: Strumień sprężonego powietrza odniesiony do 20°C i 1 bar a
C6: =C5+1 -> 4 | D6: =HLOOKUP($D$2,Language!$E$3:M52,C6) -> Compressor discharge pressure | E6: minimaler Betriebsdruck | F6: Compressor discharge pressure | G6: Pression sortie compresseur | H6: Minima pressione di esercizio | I6: Presión de descarga del compresor | J6: Minimalne ciśnienie robocze
C7: =C6+1 -> 5 | D7: =HLOOKUP($D$2,Language!$E$3:M53,C7) -> Minimum inlet pressure | E7: minimaler Eintrittsdruck | F7: Minimum inlet pressure | G7: Pression entrée mini | H7: Minima pressione in ingresso | I7: Presión mínima de entrada | J7: Minimalne ciśnienie na wlocie
C8: 6 | D8: =HLOOKUP($D$2,Language!$E$3:M54,C8) -> Maximum inlet temperature | E8: maximale Eintrittstemperatur | F8: Maximum inlet temperature | G8: T°C entrée maxi | H8: Massima temperatura in ingresso | I8: Temperatura máxima de entrada | J8: Maksymalne ciśnienie na wlocie
C9: =C8+1 -> 7 | D9: =HLOOKUP($D$2,Language!$E$3:M55,C9) -> Outlet pressure dewpoint | E9: Drucktaupunkt | F9: Outlet pressure dewpoint | G9: PDR sous pression requis | H9: Punto di rugiada in pressione | I9: Salida punto de rocío a presión | J9: Ciśnieniowy punkt rosy
C10: =C9+1 -> 8 | D10: =HLOOKUP($D$2,Language!$E$3:M56,C10) -> Out of range! Use 25 - 50°C or 77 - 122°F | E10: Außerhalb des Bereiches von 25 - 50°C oder 77 - 122°F | F10: Out of range! Use 25 - 50°C or 77 - 122°F | G10: Hors Standard ! Choisir dans la plage25 - 50°C ou 77 - 122°F | H10: Fuori range ! Selez. da 25 - 50 °C oppure 77 - 122 °F | I10: Fuera de rango ! Usar 25 - 50°C o 77 - 122 °F | J10: Poza zakresem! Wybierz od 25 do 50°C lub 77 - 122 °F
C11: =C10+1 -> 9 | D11: =HLOOKUP($D$2,Language!$E$3:M57,C11) -> Dryer must be sized by Parker! | E11: Trockner im Werk anfragen! | F11: Dryer must be sized by Parker! | G11: Le sécheur doit être déterminé par Parker! | H11: Selezione dell'essiccatore a cura Parker! | I11: El secador debe ser dimensionado por Parker! | J11: Osuszacz musi być dobrany fabrycznie!
C12: 10 | D12: =HLOOKUP($D$2,Language!$E$3:M58,C12) -> Language choice | E12: Sprachauswahl | F12: Language choice | G12: Choix du langage | H12: Scelta della lingua | I12: Selección de idioma | J12: Wybór języka
C13: 11 | D13: =HLOOKUP($D$2,Language!$E$3:M59,C13) -> Please enter only one pressure value! | E13: Bitte nur einen Druckwert eingeben! | F13: Please enter only one pressure value! | G13: Merci de n'entrer qu'une seule valeur de pression | H13: Inserire solo un valore di pressione | I13: Por favor introduzca un único valor de presión | J13: Proszę wprowadzić tylko jedną wartość ciśnienia !
C14: 12 | D14: =HLOOKUP($D$2,Language!$E$3:M60,C14) -> Dryer in accordance with standard specification | E14: Trockner in der Standard Ausführung | F14: Dryer in accordance with standard specification | G14: Sécheur conforme aux spécifications standards | H14: Essiccatore in accordo a specifiche standard | I14: Secador conforme a la especificación standard | J14: Osuszacz w standardowym wykonaniu
C15: 13 | D15: =HLOOKUP($D$2,Language!$E$3:M61,C15) -> Dryer choice with input data | E15: Trocknerwahl mit Ihren Eingabedaten | F15: Dryer choice with input data | G15: Sélection Sécheur en fonction des données d'entrée | H15: Scelta essiccatore sulla base dei dati cliente | I15: Elección del secador con los datos de entrada | J15: Dobór osuszacza według podanych wartości wejściowych
C16: 14 | D16: =HLOOKUP($D$2,Language!$E$3:M62,C16) -> Standard orifice Ø | E16: Ø Blende im Standard | F16: Standard orifice Ø | G16: Ø orifice standard | H16: Orifizio calibrato standard | I16: Orificio standard Ø | J16: Otwór standardowy Ø
C17: 15 | D17: =HLOOKUP($D$2,Language!$E$3:M63,C17) -> Without dew-point dependant-switching (fixed cycle) | E17: ohne Taupunkt-Steuerung (fester Zyklus) | F17: Without dew-point dependant-switching (fixed cycle) | G17: Cycles fixes (indépendants du PDR) | H17: Senza controllo punto di rugiada (cicli fissi) | I17: Sin control por punto de rocío (Ciclo fijo) | J17: Bez sterowania zwrotnego od punktu rosy
C18: 16 | D18: =HLOOKUP($D$2,Language!$E$3:M64,C18) -> With dew-point dependant-switching (variable cycle) | E18: mit Taupunkt-Steuerung ZHM 100 (variabler Zyklus) | F18: With dew-point dependant-switching (variable cycle) | G18: Cycles variables (dépendants du PDR) | H18: Con controllo punto di rugiada (cicli variabili) | I18: Con control por punto de rocío (Ciclo variable) | J18: Ze sterowaniem zwrotnym od punktu rosy
C19: 17 | D19: =HLOOKUP($D$2,Language!$E$3:M65,C19) -> Average purge-air consumption | E19: Regenerationsluftbedarf im Durchschnitt | F19: Average purge-air consumption | G19: Consommation moyenne d'air de régénération | H19: Consumo medio aria di rigenerazione | I19: Promedio consumo de aire de purga | J19: Średnie zużycie powietrza na regeneracje
C20: 18 | D20: =HLOOKUP($D$2,Language!$E$3:M66,C20) -> Order Number/Catalogue Number | E20: Bestellnummer/Katalognummer | F20: Order Number/Catalogue Number | G20: Réf catalogue | H20: Numero ordine/Numero catalogo | I20: Número de pedido/Número de catálogo | J20: Numer zamówieniowy / Numer katalogowy
C21: 19 | D21: =HLOOKUP($D$2,Language!$E$3:M67,C21) -> Average outlet flow rate | E21: Austrittsvolumenstrom im Durchschnitt | F21: Average outlet flow rate | G21: Débit moyen UTILE | H21: Portata media in uscita | I21: Caudal medio de salida | J21: Średnia wielkość strumienia na wylocie
C22: 20 | D22: =HLOOKUP($D$2,Language!$E$3:M68,C22) -> Following orifice is recommended | E22: Folgende Düse ist empfehlenswert | F22: Following orifice is recommended | G22: L'orifice suivant est recommandé | H22: Orifizio calibrato raccomandato | I22: El siguiente orificio es recomendado | J22: Zaleca się następującą dysze
C23: 21 | D23: =HLOOKUP($D$2,Language!$E$3:M69,C23) -> In addition, please order | E23: Bestellen Sie dazu | F23: In addition, please order | G23: Ne pas oublier de commander | H23: Prego ordinare in aggiunta | I23: Además, por favor pedir | J23: Dodatkowo proszę zamówić
C24: 22 | D24: =HLOOKUP($D$2,Language!$E$3:M70,C24) -> Standard connections (DIN ISO 228 or DIN 2633) | E24: Anschluß im Standard (DIN ISO 228 bzw. DIN 2633 (BSP-P)) | F24: Standard connections (DIN ISO 228 or DIN 2633) | G24: Raccordements standards (DIN ISO 228 ou DIN 2633) | H24: Connessione standard (DIN ISO 228 o DIN 2633) | I24: Conexiones standard (DIN ISO 228 o DIN 2633) | J24: Standardowe przyłącze (DIN ISO 228 lub DIN 2633)
C25: 23 | D25: =HLOOKUP($D$2,Language!$E$3:M71,C25) -> Weight | E25: Gewicht | F25: Weight | G25: Poids | H25: Peso | I25: Peso | J25: Waga
C26: 24 | D26: =HLOOKUP($D$2,Language!$E$3:M72,C26) -> Dimensions (AxBxC) (Width) x (Height) x (Depth) | E26: Dimensionen (AxBxC) (Breite)x(Höhe)x(Tiefe) | F26: Dimensions (AxBxC) (Width) x (Height) x (Depth) | G26: Dimensions (AxBxC) (Large) x (Haut) x (Prof) | H26: Dimensioni (AxBxC) (Larghezza)x(altezza)x(profondità) | I26: Dimensiones (AxBxC) (Ancho) x (altura) x (Profundidad) | J26: Wymiary (AxBxC) (szerokość) x (wysokość) x (głębokość)
C27: 25 | D27: =HLOOKUP($D$2,Language!$E$3:M73,C27) -> Standard Voltage | E27: Netzspannung im Standard | F27: Standard Voltage | G27: Voltage Standard | H27: Tensione standard | I27: Tensión standard | J27: Standardowe napięcie zasilające
C28: 26 | D28: =HLOOKUP($D$2,Language!$E$3:M74,C28) -> IP - Protection classification | E28: Schutzklasse | F28: IP - Protection classification | G28: Classe IP Protection | H28: Classe di protezione IP | I28: Clasificación de la protección IP | J28: Stopień ochrony IP
C29: 27 | D29: =HLOOKUP($D$2,Language!$E$3:M75,C29) -> Alternatives possible | E29: Altenativen möglich | F29: Alternatives possible | G29: Variantes possibles | H29: Possibili alternative | I29: Alternativas posibles | J29: Alternatywnie możliwe
C30: 28 | D30: =HLOOKUP($D$2,Language!$E$3:M76,C30) -> Please consult Parker! | E30: Im Werk anfragen! | F30: Please consult Parker! | G30: Merci de bien vouloir consulter Parker! | H30: Prego consultare la Parker! | I30: Por favor consultar a Parker! | J30: Prosimy o kontakt z Parkerem!
C31: 29 | D31: =HLOOKUP($D$2,Language!$E$3:M77,C31) -> Out of range! Use 5,5 - 15,5 bar g or 80 - 225 psi g | E31: Außerhalb des Bereiches von 5,5 - 15,5 bar g oder 80 - 225 psi g | F31: Out of range! Use 5,5 - 15,5 bar g or 80 - 225 psi g | G31: Hors Standard ! Choisir dans la plage 5,5 - 15,5 bar eff ou 80 - 225 psi g | H31: Fuori range ! Selez. da 5,5 - 15,5 barg oppure 80 - 225 psi g | I31: Fuera de rango! Usar 5,5 - 15,5 barg o 80 - 225 psi g | J31: Poza zakresem! Wybierz od 5,5 d 15,5 barg lub 80 - 225 psi g
C32: 30 | D32: =HLOOKUP($D$2,Language!$E$3:M78,C32) -> Out of range! Use 1,5 - 50°C or 77 - 122°F | E32: Außerhalb des Bereiches von 1,5 - 50°C oder 77 - 122°F | F32: Out of range! Use 1,5 - 50°C or 77 - 122°F | G32: Hors Standard ! Choisir dans la plage 1,5 - 50°C ou 77 - 122°F | H32: Fuori range ! Selez. da 1,5 - 50 °C oppure 77 - 122 °F | I32: Fuera de rango! Usar 1,5 - 50°C o 77 - 122 °F | J32: Poza zakresem! Wybierz od 1,5 do 50°C lub 77 - 122 °F
C33: 31 | D33: =HLOOKUP($D$2,Language!$E$3:M79,C33) -> Out of range! Use 5 - 15 bar g or 73 - 217 psi g | E33: Außerhalb des Bereiches von 5 - 15 bar g oder 73 - 217 psi g | F33: Out of range! Use 5 - 15 bar g or 73 - 217 psi g | G33: Hors Standard ! Choisir dans la plage 5 - 15 bar eff ou 73 - 217 psi g | H33: Fuori range ! Selez. da 5 - 15 barg oppure 73 - 217 psi g | I33: Fuera de rango! Usar 5 - 15 barg o 73 - 217 psi g | J33: Poza zakresem! Wybierz od 5 do 15 bar g lub 73 - 217 psi g
C34: 32 | D34: =HLOOKUP($D$2,Language!$E$3:M80,C34) -> Out of standard range! Check the inputs! | E34: Außerhalb des Standards! Eingabewerte kontrollieren! | F34: Out of standard range! Check the inputs! | G34: Hors Standard ! | H34: Fuori range ! | I34: Fuera de rango! | J34: Poza zakresem!
C35: 33 | D35: =HLOOKUP($D$2,Language!$E$3:M81,C35) -> Inputs are OK! GO! | E35: Eingabewerte sind korrekt! GO! | F35: Inputs are OK! GO! | G35: =F35 -> Inputs are OK! GO! | H35: =F35 -> Inputs are OK! GO! | I35: =F35 -> Inputs are OK! GO! | J35: =F35 -> Inputs are OK! GO!
C36: 34 | D36: =HLOOKUP($D$2,Language!$E$3:M82,C36) -> Dew point is not garanteed! Please reduce the inlet temperature! | E36: Taupunkt kann nicht garantiert werden! Eintrittstemperatur reduzieren! | F36: Dew point is not garanteed! Please reduce the inlet temperature! | G36: =F36 -> Dew point is not garanteed! Please reduce the inlet temperature! | H36: =F36 -> Dew point is not garanteed! Please reduce the inlet temperature! | I36: =F36 -> Dew point is not garanteed! Please reduce the inlet temperature! | J36: =F36 -> Dew point is not garanteed! Please reduce the inlet temperature!
C37: 35 | D37: =HLOOKUP($D$2,Language!$E$3:M83,C37) -> Alternatively ANSI B 1.20.1 (NPT-F). | E37: Auch in ANSI B 1.20.1 (NPT-F) möglich. | F37: Alternatively ANSI B 1.20.1 (NPT-F). | G37: =F37 -> Alternatively ANSI B 1.20.1 (NPT-F). | H37: =F37 -> Alternatively ANSI B 1.20.1 (NPT-F). | I37: =F37 -> Alternatively ANSI B 1.20.1 (NPT-F). | J37: =F37 -> Alternatively ANSI B 1.20.1 (NPT-F).
C38: 36 | D38: =HLOOKUP($D$2,Language!$E$3:M84,C38) -> Alternatively 115V and 24 VDC. | E38: Auch mit 115V und 24 V DC möglich. | F38: Alternatively 115V and 24 VDC. | G38: =F38 -> Alternatively 115V and 24 VDC. | H38: =F38 -> Alternatively 115V and 24 VDC. | I38: =F38 -> Alternatively 115V and 24 VDC. | J38: =F38 -> Alternatively 115V and 24 VDC.
C39: 37 | D39: =HLOOKUP($D$2,Language!$E$3:M85,C39) -> cycle - total | E39: Zyklus - Gesamt | F39: cycle - total | G39: =F39 -> cycle - total | H39: =F39 -> cycle - total | I39: =F39 -> cycle - total | J39: =F39 -> cycle - total
C40: 38 | D40: =HLOOKUP($D$2,Language!$E$3:M86,C40) -> adsorption | E40: - Adsorption | F40: adsorption | G40: adsorption | H40: adsorption | I40: adsorption | J40: adsorption
C41: 39 | D41: =HLOOKUP($D$2,Language!$E$3:M87,C41) -> regeneration | E41: - Regeneration | F41: regeneration | G41: regeneration | H41: regeneration | I41: regeneration | J41: regeneration
C42: 40 | D42: =HLOOKUP($D$2,Language!$E$3:M88,C42) -> pressurization | E42: - Druckaufbau | F42: pressurization | G42: pressurization | H42: pressurization | I42: pressurization | J42: pressurization
C43: 41 | D43: =HLOOKUP($D$2,Language!$E$3:M89,C43) -> Standby | E43: - Standby | F43: Standby | G43: Standby | H43: Standby | I43: Standby | J43: Standby
C44: 42 | D44: =HLOOKUP($D$2,Language!$E$3:M90,C44) -> 0
C45: 43 | D45: =HLOOKUP($D$2,Language!$E$3:M91,C45) -> 0
C46: 44 | D46: =HLOOKUP($D$2,Language!$E$3:M92,C46) -> 0
C47: 45 | D47: =HLOOKUP($D$2,Language!$E$3:M93,C47) -> 0
C48: 46 | D48: =HLOOKUP($D$2,Language!$E$3:M94,C48) -> 0
C49: 47 | D49: =HLOOKUP($D$2,Language!$E$3:M95,C49) -> 0
C50: 48 | D50: =HLOOKUP($D$2,Language!$E$3:M96,C50) -> 0

Sheet Be-Um-rechnung (hidden)
A1: Auslegungsprogramm K-MT 1-8, K-MT 10-95 und K-MT 120-600
A3: =Input!A15 -> Compressed air flow rate at 20°C and 1 bar a | C3: =H23 -> 8 | D3: m³/h
A4: =Input!F5 -> Minimum inlet pressure | C4: =F20 -> 7 | D4: bar g | J4: =IF(OR(C4<5,C4>15),0,1) -> 1
A5: =Input!F25 -> Maximum inlet temperature | C5: =F14 -> 35 | D5: °C | J5: =IF(OR(C5<25,C5>50),0,1) -> 1
A6: =Input!I25 -> Outlet pressure dewpoint | C6: =IF(L39=-40,-40,-70) -> -40 | D6: °C
A7: Temperaturdifferenz | C7: =C5-C6 -> 75 | D7: °C | J7: =IF(C7>105,0,1) -> 1
A8: Korrekturfaktor K = | C8: =Stoffdaten!G2 -> 1 | D8: - | J8: =C8 -> 1
A9: Volumenstrom V_gerechnet = | C9: =IF(C8=0,-1,C3/C8) -> 8 | D9: m³/h | J9: =C9 -> 8
J10: =IF(AND(J4=1,J5=1,J7=1),SUM(J4:J9),0) -> 12 | K10: 0 = not OK | L10: >= 1 = OK
A11: Temperatur | C11: Einheit
A12: 1 | C12: °C
A13: 2 | C13: °F
A14: 1 | B14: =Input!F26 -> 35 | C14: =VLOOKUP(A14,A12:C13,3) -> °C | D14: =IF(A14=1,Input!F26,((Input!F26-32)*5/9)) -> 35 | E14: °C | F14: =IF(A14=1,ROUNDUP(Input!F26*2,-1)/2,(ROUNDUP(((Input!F26-32)*5/9)*2,-1)/2)) -> 35 | G14: °C
A17: Druck | C17: Einheit
A18: 1 | C18: bar g
A19: 2 | C19: psi g
A20: 1 | B20: =Input!F6 -> 7 | C20: =VLOOKUP(A20,A18:C19,3) -> bar g | F20: =IF(A20=1,Input!F6,(Input!F6*0.06894757)) -> 7 | G20: bar g
H23: =SUM(H25:H28) -> 8
A24: Volumenstrom | C24: Einheit | F24: =E25 -> L/sec | G24: =E26 -> m³/min | H24: =E27 -> m³/h | I24: =E28 -> cfm
A25: 1 | C25: L/sec | E25: L/sec | F25: =IF(A29=1,B29,"0") -> 0 | G25: - | H25: =F25*3600/1000 -> 0 | I25: -
A26: 2 | C26: m³/min | E26: m³/min | F26: - | G26: =IF(A29=2,B29,"0") -> 0 | H26: =G26*60 -> 0 | I26: -
A27: 3 | C27: m³/h | E27: m³/h | F27: - | G27: - | H27: =IF(A29=3,B29,"0") -> 8 | I27: -
A28: 4 | C28: cfm | E28: cfm | F28: - | G28: - | H28: =I28*60/35.31467 -> 0 | I28: =IF(A29=4,B29,"0") -> 0
A29: 3 | B29: =Input!A16 -> 8 | C29: =VLOOKUP(A29,A25:C28,3) -> m³/h
A32: DTP | C32: Einheit | F32: °C | G32: °C | H32: °C | I32: °C | J32: °C | K32: °C
A33: 1 | B33: -20 | C33: -20°C | E33: -20°C | F33: =IF(A39=1,-40,"0") -> 0
A34: 2 | B34: -40 | C34: -40°C | E34: -40°C | G34: =IF(A39=2,-40,"0") -> -40
A35: 3 | B35: -70 | C35: -70°C | E35: -70°C | H35: =IF(A39=3,-70,"0") -> 0
A36: 4 | B36: -4 | C36: -4°F | E36: -4°F | I36: =IF(A39=4,-40,"0") -> 0
A37: 5 | B37: -40 | C37: -40°F | E37: -40°F | J37: =IF(A39=5,-40,"0") -> 0
A38: 6 | B38: -94 | C38: -94°F | E38: -94°F | K38: =IF(A39=6,-70,"0") -> 0
A39: 2 | B39: =VLOOKUP(A39,A33:C38,2) -> -40 | C39: =VLOOKUP(A39,A33:C38,3) -> -40°C | D39: =IF(A39>=4,"°F", "°C") -> °C | F39: =SUM(F33:F38) -> 0 | G39: -40 | H39: 0 | I39: 0 | J39: 0 | K39: 0 | L39: =SUM(F39:K39) -> -40

Sheet Düsen Blendenkit (hidden)
B1: Eintrittstemperatur: | C1: max. 35 °C
B2: Drucktaupunkt: | C2: -40°C
A3: ='Be-Um-rechnung'!C5 -> 35 | B3: =IF('Be-Um-rechnung'!C5=35,1,0) -> 1
A4: ='Be-Um-rechnung'!C4 -> 7 | B4: =HLOOKUP(A4,C8:G9,2) -> 2
A5: K-MT | B5: =Stoffdaten!N2 -> 1 | C5: =VLOOKUP(Stoffdaten!N2,'Düsen Blendenkit'!B12:M27,1) -> 1
B7: gerechnet für | C7: 5 | D7: 7 | E7: 10 | F7: 12 | G7: 13,5-15 | H7: bar ü
B8: kleinster Druck | C8: 0 | D8: 6 | E8: 8.1 | F8: 11 | G8: 13
C9: 1 | D9: 2 | E9: 3 | F9: 4 | G9: 5
B10: Größe | C10: Blende | D10: Blende | E10: Blende | F10: Blende | G10: Blende
C11: mm | D11: mm | E11: mm | F11: mm | G11: mm
A12: mit Multitronic | B12: 1 | C12: 0.7 | D12: 0.7 | E12: 0.5 | F12: 0.5 | G12: 0.5
B13: 2 | C13: 1.1 | D13: 0.9 | E13: 0.7 | F13: 0.7 | G13: 0.7
B14: 3 | C14: 1.3 | D14: 1.1 | E14: 1.1 | F14: 0.9 | G14: 0.9
B15: 4 | C15: 1.5 | D15: 1.3 | E15: 1.1 | F15: 1.1 | G15: 1.1
B16: 6 | C16: 1.9 | D16: 1.7 | E16: 1.5 | F16: 1.3 | G16: 1.3
B17: 7 | C17: 2.1 | D17: 1.9 | E17: 1.7 | F17: 1.5 | G17: 1.5
B18: 8 | C18: 2.4 | D18: 2.1 | E18: 1.9 | F18: 1.7 | G18: 1.7
B19: 10 | C19: 2.8 | D19: 2.3 | E19: 2.1 | F19: 1.9 | G19: 1.9
B20: 15 | C20: 3.1 | D20: 2.8 | E20: 2.5 | F20: 2.1 | G20: 1.9
B21: 20 | C21: 3.7 | D21: 3.4 | E21: 3.1 | F21: 2.3 | G21: 2.3
B22: 25 | C22: 4.5 | D22: 3.7 | E22: 3.4 | F22: 2.8 | G22: 2.5
B23: 35 | C23: 4.9 | D23: 4.1 | E23: 3.7 | F23: 3.1 | G23: 2.8
B24: 45 | C24: 5.4 | D24: 4.9 | E24: 4.1 | F24: 3.4 | G24: 3.4
B25: 60 | C25: 6.6 | D25: 6 | E25: 4.9 | F25: 4.1 | G25: 3.7
B26: 75 | C26: 7.4 | D26: 6.6 | E26: 5.4 | F26: 4.5 | G26: 4.5
B27: 95 | C27: 8.5 | D27: 7.4 | E27: 6.6 | F27: 5.4 | G27: 5.4 | H27: =VLOOKUP(C5,B12:G27,B4+1) -> 0.7
A29: mit Multitronic + ZHM 100 | B29: 1 | C29: 0.7 | D29: 0.7 | E29: 0.5 | F29: 0.5 | G29: 0.5
B30: 2 | C30: 1.1 | D30: 0.9 | E30: 0.7 | F30: 0.7 | G30: 0.7
B31: 3 | C31: 1.3 | D31: 1.1 | E31: 1.1 | F31: 0.9 | G31: 0.9
B32: 4 | C32: 1.5 | D32: 1.3 | E32: 1.1 | F32: 1.1 | G32: 1.1
B33: 6 | C33: 1.9 | D33: 1.7 | E33: 1.5 | F33: 1.3 | G33: 1.3
B34: 7 | C34: 2.1 | D34: 1.9 | E34: 1.7 | F34: 1.5 | G34: 1.5
B35: 8 | C35: 2.4 | D35: 2.1 | E35: 1.9 | F35: 1.7 | G35: 1.7
B36: 10 | C36: 3.1 | D36: 2.5 | E36: 2.1 | F36: 2.1 | G36: 1.9
B37: 15 | C37: 3.4 | D37: 3.1 | E37: 2.8 | F37: 2.3 | G37: 2.1
B38: 20 | C38: 3.7 | D38: 3.4 | E38: 3.1 | F38: 2.5 | G38: 2.5
B39: 25 | C39: 4.5 | D39: 3.7 | E39: 3.4 | F39: 3.1 | G39: 2.8
B40: 35 | C40: 4.9 | D40: 4.5 | E40: 3.7 | F40: 3.4 | G40: 3.1
B41: 45 | C41: 6 | D41: 4.9 | E41: 4.1 | F41: 3.7 | G41: 3.7
B42: 60 | C42: 6.6 | D42: 6 | E42: 4.9 | F42: 4.5 | G42: 4.1
B43: 75 | C43: 7.4 | D43: 6.6 | E43: 5.4 | F43: 5.4 | G43: 4.9
B44: 95 | C44: 8.5 | D44: 7.4 | E44: 6.6 | F44: 6 | G44: 5.4 | H44: =VLOOKUP(C5,B29:G44,B4+1) -> 0.7
A46: max. Volumenstrom m³/h | B46: 1 | C46: 6 | D46: 8 | E46: 11 | F46: 13 | G46: 14-16
B47: 2 | C47: 11 | D47: 15 | E47: 20 | F47: 24 | G47: 27-30
B48: 3 | C48: 18 | D48: 25 | E48: 34 | F48: 40 | G48: 45-50
B49: 4 | C49: 26 | D49: 35 | E49: 48 | F49: 56 | G49: 63-70
B50: 6 | C50: 42 | D50: 56 | E50: 77 | F50: 90 | G50: 101-112
B51: 7 | C51: 54 | D51: 72 | E51: 99 | F51: 117 | G51: 130-142
B52: 8 | C52: 64 | D52: 86 | E52: 115 | F52: 122 | G52: 132-148
B53: 10 | C53: 78 | D53: 105 | E53: 144 | F53: 170 | G53: 190-210
B54: 15 | C54: 108 | D54: 145 | E54: 195 | F54: 220 | G54: 240-250
B55: 20 | C55: 150 | D55: 200 | E55: 275 | F55: 280 | G55: 320-340
B56: 25 | C56: 191 | D56: 255 | E56: 345 | F56: 370 | G56: 410-430
B57: 35 | C57: 245 | D57: 330 | E57: 445 | F57: 460 | G57: 550-570
B58: 45 | C58: 315 | D58: 420 | E58: 575 | F58: 580 | G58: 650-680
B59: 60 | C59: 465 | D59: 620 | E59: 800 | F59: 840 | G59: 900-950
B60: 75 | C60: 562 | D60: 750 | E60: 1030 | F60: 1060 | G60: 1150-1250
B61: 95 | C61: 705 | D61: 940 | E61: 1280 | F61: 1350 | G61: 1500-1570 | H61: =VLOOKUP(C5,B46:G61,B4+1) -> 8
